fUST/lending_fUST_20250403
["ID","MTS","AMOUNT","RATE_DAILY","PERIOD"]
[357040882,1743615037350,-594.66,0.00016896,2]
[357040883,1743615037360,-585.40396427,0.00016896,2]
[357040884,1743615037370,-500.0,0.00016896,2]
[357040885,1743615037380,-500.0,0.00016896,2]
[357040886,1743615037389,-500.0,0.00016896,2]
[357040887,1743615037399,-500.0,0.00016896,2]
[357040888,1743615037408,-500.0,0.00016896,2]
[357040889,1743615037418,-500.0,0.00016896,2]
[357040890,1743615037427,-502.48668109,0.00016896,2]
[357040891,1743615037437,-500.0,0.00016896,2]
[357040892,1743615037446,-500.0,0.00016896,2]
[357040893,1743615037456,-519.38,0.00016896,2]
[357040894,1743615037465,-500.0,0.00016896,2]
[357040895,1743615037474,-500.0,0.00016896,2]
[357040896,1743615037484,-500.0,0.00016896,2]
[357040897,1743615037493,-500.0,0.00016896,2]
[357040898,1743615037503,-500.0,0.00016896,2]
[357040899,1743615037512,-500.0,0.00016896,2]
[357040900,1743615037522,-500.0,0.00016896,2]
[357040901,1743615037531,-500.0,0.00016896,2]
[357040902,1743615037541,-500.0,0.00016896,2]
[357040903,1743615037550,-500.0,0.00016896,2]
[357040904,1743615037560,-500.0,0.00016896,2]
[357040905,1743615037570,-500.19,0.00016896,2]
[357040906,1743615037579,-500.0,0.00016896,2]
[357040907,1743615037593,-500.0,0.00016896,2]
[357040908,1743615037744,-500.0,0.00016896,2]
[357040909,1743615037758,-500.0,0.00016896,2]
[357040910,1743615037771,-500.0,0.00016896,2]
[357040911,1743615037781,-500.0,0.00016896,2]
[357040912,1743615037792,-500.0,0.00016896,2]
[357040913,1743615037803,-500.0,0.00016896,2]
[357040914,1743615037812,-500.0,0.00016896,2]
[357040915,1743615037822,-500.0,0.00016896,2]
[357040916,1743615037831,-500.0,0.00016896,2]
[357040917,1743615037840,-500.0,0.00016896,2]
[357040918,1743615037850,-500.0,0.00016896,2]
[357040919,1743615037859,-500.0,0.00016896,2]
[357040920,1743615037869,-500.0,0.00016896,2]
[357040921,1743615037878,-500.0,0.00016896,2]
[357040922,1743615037887,-500.0,0.00016896,2]
[357040923,1743615037896,-405.0652214,0.00016896,2]
[357040924,1743615037906,-500.0,0.00016896,2]
[357040925,1743615037915,-500.0,0.00016896,2]
[357040926,1743615037924,-500.0,0.00016896,2]
[357040927,1743615037934,-500.0,0.00016896,2]
[357040928,1743615037943,-500.0,0.00016896,2]
[357040929,1743615037952,-500.0,0.00016896,2]
[357040930,1743615037961,-393.93810031,0.00016896,2]
[357040931,1743615037971,-303.83902971,0.00016896,2]
[357040932,1743615037982,-500.0,0.00016897,2]
[357040933,1743615037992,-500.0,0.00016897,2]
[357040934,1743615038000,-500.0,0.00016897,2]
[357040935,1743615038010,-527.99846481,0.00016897,2]
[357040936,1743615038019,-500.0,0.00016897,2]
[357040937,1743615038029,-500.0,0.00016897,2]
[357040938,1743615038038,-500.0,0.00016897,2]
[357040939,1743615038048,-500.0,0.00016897,2]
[357040940,1743615038058,-500.0,0.00016897,2]
[357040941,1743615038067,-500.0,0.00016897,2]
[357040942,1743615038077,-500.0,0.00016897,2]
[357040943,1743615038087,-633.18,0.00016897,2]
[357040944,1743615038096,-500.0,0.00017169,2]
[357040945,1743615038105,-500.0,0.00017169,2]
[357040946,1743615038115,-346.71,0.00017169,2]
[357040948,1743615038124,-551.12,0.00017169,2]
[357040949,1743615038133,-500.0,0.00017169,2]
[357040950,1743615038143,-500.0,0.00017169,2]
[357040951,1743615038152,-507.48368494,0.0001717,2]
[357040952,1743615038161,-190.57021611,0.0001717,2]
[357040953,1743615038172,-500.0,0.0001717,2]
[357040954,1743615038182,-500.0,0.0001717,2]
[357040955,1743615038191,-500.0,0.0001717,2]
[357040956,1743615038201,-500.0,0.0001717,2]
[357040957,1743615038211,-508.25981188,0.0001717,2]
[357040958,1743615038220,-500.0,0.0001717,2]
[357040959,1743615038229,-500.0,0.0001717,2]
[357040960,1743615038238,-529.37943619,0.0001717,2]
[357040961,1743615038248,-511.15628478,0.0001717,2]
[357040962,1743615038257,-500.0,0.0001717,2]
[357040963,1743615038267,-510.81350676,0.0001717,2]
[357040964,1743615038276,-504.43705177,0.0001717,2]
[357040965,1743615038285,-500.0,0.0001717,2]
[357040966,1743615038295,-500.0,0.0001717,2]
[357040967,1743615038304,-500.0,0.0001717,2]
[357040968,1743615038313,-500.0,0.0001717,2]
[357040969,1743615038322,-500.0,0.0001717,2]
[357040970,1743615038332,-406.17235112,0.0001717,2]
[357040971,1743615038342,-550.55996212,0.0001717,2]
[357040973,1743615038351,-500.0,0.0001717,2]
[357040974,1743615038360,-500.0,0.0001717,2]
[357040975,1743615038370,-508.01550889,0.0001717,2]
[357040976,1743615038379,-515.0,0.0001717,2]
[357040977,1743615038388,-508.24089572,0.0001717,2]
[357040978,1743615038397,-508.75460743,0.0001717,2]
[357040979,1743615038406,-500.0,0.0001717,2]
[357040980,1743615038415,-507.27633044,0.0001717,2]
[357040981,1743615038425,-586.75,0.0001717,2]
[357040982,1743615038434,-220.0,0.0001717,2]
[357040983,1743615038443,-500.0,0.0001717,2]
[357040984,1743615038453,-594.1044212,0.0001717,2]
[357040986,1743615038462,-504.01109854,0.0001717,2]
[357040988,1743615038472,-512.98812796,0.0001717,2]
[357040990,1743615038481,-500.0,0.0001717,2]
[357040992,1743615038490,-558.81285612,0.0001717,2]
[357040994,1743615038499,-500.0,0.0001717,2]
[357040996,1743615038508,-500.0,0.0001717,2]
[357040998,1743615038517,-500.0,0.0001717,2]
[357041000,1743615038526,-500.0,0.0001717,2]
[357041002,1743615038537,-500.0,0.0001717,2]
[357041003,1743615038546,-500.0,0.0001717,2]
[357041004,1743615038555,-553.51,0.0001717,2]
[357041005,1743615038565,-500.0,0.0001717,2]
[357041006,1743615038575,-500.0,0.0001717,2]
[357041007,1743615038584,-489.18,0.0001717,2]
[357041008,1743615038593,-222.69,0.0001717,2]
[357041009,1743615038602,-500.0,0.0001717,2]
[357041010,1743615038611,-564.08,0.0001717,2]
[357041011,1743615038621,-374.18,0.0001717,2]
[357041012,1743615038630,-500.0,0.0001717,2]
[357041013,1743615038639,-150.74,0.0001717,2]
[357041014,1743615038649,-500.0,0.0001717,2]
[357041015,1743615038658,-500.0,0.0001717,2]
[357041017,1743615038667,-500.0,0.0001717,2]
[357041019,1743615038677,-368.9,0.0001717,2]
[357041021,1743615038686,-500.0,0.0001717,2]
[357041023,1743615038696,-500.0,0.0001717,2]
[357041025,1743615038706,-500.0,0.0001717,2]
[357041028,1743615038716,-500.0,0.0001717,2]
[357041030,1743615038725,-500.0,0.0001717,2]
[357041032,1743615038735,-500.0,0.0001717,2]
[357041034,1743615038745,-500.0,0.0001717,2]
[357041035,1743615038754,-500.0,0.0001717,2]
[357041037,1743615038764,-590.98,0.0001717,2]
[357041039,1743615038773,-500.0,0.0001717,2]
[357041041,1743615038782,-500.19,0.0001717,2]
[357041043,1743615038792,-500.0,0.0001717,2]
[357041044,1743615038801,-461.23029521,0.0001717,2]
[357041045,1743615038811,-500.0,0.0001717,2]
[357041047,1743615038820,-500.0,0.0001717,2]
[357041049,1743615038829,-462.93212355,0.0001717,2]
[357041051,1743615038839,-500.0,0.0001717,2]
[357041053,1743615038848,-500.0,0.0001717,2]
[357041054,1743615038858,-500.0,0.0001717,2]
[357041055,1743615038868,-500.0,0.0001717,2]
[357041056,1743615038877,-500.0,0.0001717,2]
[357041057,1743615038887,-500.0,0.0001717,2]
[357041058,1743615038896,-500.0,0.0001717,2]
[357041060,1743615038905,-610.63,0.0001717,2]
[357041061,1743615038914,-500.0,0.0001717,2]
[357041062,1743615038923,-500.0,0.0001717,2]
[357041063,1743615038933,-365.92,0.0001717,2]
[357041064,1743615038942,-500.0,0.0001717,2]
[357041065,1743615038950,-317.49,0.0001717,2]
[357041066,1743615038960,-500.0,0.0001717,2]
[357041067,1743615038969,-500.0,0.00017171,2]
[357041068,1743615038978,-500.0,0.00017171,2]
[357041069,1743615038987,-500.0,0.00017171,2]
[357041070,1743615038996,-249.51,0.00017171,2]
[357041071,1743615039005,-500.0,0.00017272,2]
[357041072,1743615039014,-500.0,0.00017272,2]
[357041073,1743615039023,-151.0,0.00017296,2]
[357041074,1743615039033,-200.0,0.00017336,2]
[357041075,1743615039043,-500.0,0.00017345,2]
[357041076,1743615039053,-525.35809101,0.00017345,2]
[357041077,1743615039062,-2451.42947781,0.00017346,2]
[357041078,1743615039148,-820.68640775,0.00017346,2]
[357041079,1743615039165,-261.76221152,0.00017346,2]
[357041080,1743615039177,-10300.50000005,0.00017346,2]
[357041097,1743615040992,-2008.69999985,0.00017346,2]
[357041160,1743615043813,-2037.88126485,0.00017346,2]
[357041161,1743615043872,-302.0,0.00017346,2]
[357041162,1743615043931,-5477.4000003,0.00017346,2]
[357041163,1743615043944,-1239.64063787,0.00017346,2]
[357041164,1743615043954,-500.0,0.00017443,2]
[357041165,1743615043964,-500.0,0.00017443,2]
[357041166,1743615043975,-551.12,0.00017443,2]
[357041167,1743615043985,-154.15,0.00017443,2]
[357041169,1743615043995,-500.0,0.00017443,2]
[357041170,1743615044004,-162.79,0.00017444,2]
[357041171,1743615044013,-488.53,0.00017444,2]
[357041172,1743615044023,-500.0,0.00017444,2]
[357041173,1743615044032,-210.4,0.00017444,2]
[357041174,1743615044042,-485.01,0.00017444,2]
[357041175,1743615044052,-574.88,0.00017444,2]
[357041176,1743615044061,-500.0,0.00017444,2]
[357041177,1743615044071,-500.0,0.00017444,2]
[357041178,1743615044081,-500.0,0.00017444,2]
[357041179,1743615044090,-293.58,0.00017444,2]
[357041180,1743615044100,-500.0,0.00017444,2]
[357041181,1743615044109,-500.0,0.00017444,2]
[357041182,1743615044119,-500.0,0.00017444,2]
[357041183,1743615044128,-500.19,0.00017444,2]
[357041184,1743615044138,-344.75,0.00017444,2]
[357041185,1743615044147,-236.59,0.00017444,2]
[357041186,1743615044157,-500.0,0.00017444,2]
[357041187,1743615044168,-500.0,0.00017444,2]
[357041188,1743615044180,-500.0,0.00017445,2]
[357041189,1743615044189,-484.78,0.00017445,2]
[357041190,1743615044199,-472.68,0.00017445,2]
[357041191,1743615044210,-171.87,0.00017546,2]
[357041192,1743615044220,-500.0,0.000177,2]
[357041193,1743615044229,-500.0,0.000177,2]
[357041194,1743615044239,-500.0,0.000177,2]
[357041195,1743615044252,-500.0,0.000177,2]
[357041196,1743615044262,-500.0,0.000177,2]
[357041197,1743615044272,-500.0,0.000177,2]
[357041198,1743615044281,-500.0,0.00017712,2]
[357041199,1743615044291,-500.0,0.00017717,2]
[357041200,1743615044302,-221.41,0.00017717,2]
[357041201,1743615044312,-551.12,0.00017717,2]
[357041202,1743615044321,-500.0,0.00017717,2]
[357041203,1743615044331,-173.98,0.00017718,2]
[357041204,1743615044341,-500.0,0.00017718,2]
[357041205,1743615044350,-500.0,0.00017718,2]
[357041206,1743615044360,-500.0,0.00017718,2]
[357041207,1743615044369,-500.0,0.00017718,2]
[357041208,1743615044379,-500.0,0.00017718,2]
[357041209,1743615044389,-209.35,0.00017718,2]
[357041210,1743615044398,-500.19,0.00017718,2]
[357041211,1743615044408,-500.0,0.00017718,2]
[357041212,1743615044417,-479.69,0.00017718,2]
[357041213,1743615044427,-152.29,0.00017719,2]
[357041214,1743615044437,-500.0,0.00017991,2]
[357041215,1743615044446,-551.12,0.00017991,2]
[357041216,1743615044455,-500.0,0.00017991,2]
[357041217,1743615044465,-500.0,0.00017992,2]
[357041218,1743615044474,-500.0,0.00017992,2]
[357041219,1743615044483,-500.0,0.00017992,2]
[357041220,1743615044493,-500.0,0.00017992,2]
[357041221,1743615044503,-500.0,0.00017992,2]
[357041222,1743615044512,-500.19,0.00017992,2]
[357041223,1743615044522,-541.79,0.00017992,2]
[357041224,1743615044532,-500.0,0.00018265,2]
[357041225,1743615044544,-551.12,0.00018265,2]
[357041226,1743615044554,-500.0,0.00018265,2]
[357041227,1743615044563,-500.0,0.00018266,2]
[357041228,1743615044573,-258.99,0.00018266,2]
[357041229,1743615044583,-500.0,0.00018266,2]
[357041230,1743615044592,-500.0,0.00018266,2]
[357041231,1743615044602,-500.0,0.00018266,2]
[357041232,1743615044612,-500.19,0.00018266,2]
[357041233,1743615044622,-1883.95106845,0.000183,2]
[357041234,1743615044632,-1883.95106845,0.00018486,2]
[357041235,1743615044641,-500.0,0.00018539,2]
[357041236,1743615044650,-551.12,0.00018539,2]
[357041237,1743615044660,-500.0,0.00018539,2]
[357041238,1743615044670,-500.0,0.0001854,2]
[357041239,1743615044679,-500.0,0.0001854,2]
[357041240,1743615044689,-500.0,0.0001854,2]
[357041241,1743615044698,-500.0,0.0001854,2]
[357041242,1743615044709,-500.19,0.0001854,2]
[357041243,1743615044719,-12458.93820146,0.00018594,2]
[357041244,1743615044728,-160.0,0.00018594,2]
[357041245,1743615044738,-160.0,0.00018596,2]
[357041246,1743615044747,-411.23562584,0.00018653,2]
[357041247,1743615044756,-482.02432594,0.00018665,2]
[357041257,1743615045928,-2979.92955918,0.00018665,2]
[357041258,1743615045987,-9624.76892481,0.00018665,2]
[357041259,1743615046047,-145424.40362945,0.00018665,2]
[357041260,1743615232107,737.1,0.00025,30]
[357041262,1743615276178,-157.20483704,0.000261,60]
[357041263,1743615276210,-157.20483704,0.00027,30]
[357041264,1743615276275,-248.79516296,0.00027,30]
[357041265,1743615276308,-498.804,0.00027397,30]
[357041266,1743615276338,-1228.86862588,0.000275,30]
[357041267,1743615276355,-158.89766184,0.000275,30]
[357041268,1743615276405,-248.79516296,0.000275,30]
[357041269,1743615276457,-498.804,0.000275,30]
[357041270,1743615276473,-3313.54540546,0.000275,30]
[357041271,1743615276484,-473.30733592,0.00028,30]
[357041272,1743615276494,-1662.05811476,0.000281,30]
[357041273,1743615558761,158.568152,0.00027325,30]
[357041274,1743615559057,158.568152,0.0002655,30]
[357041275,1743615559541,158.568152,0.00025775,30]
[357041276,1743615559844,158.568152,0.00025,30]
[357041277,1743615616950,154.71995,0.00027325,30]
[357041278,1743615617255,154.71995,0.0002655,30]
[357041279,1743615617552,154.71995,0.00025775,30]
[357041280,1743615617853,154.71995,0.00025,30]
[357041281,1743615681688,1012.0,0.000275,30]
[357041286,1743615762273,176.139772,0.00013699,2]
[357041287,1743615797652,154.719951,0.00027325,30]
[357041288,1743615797952,154.719951,0.0002655,30]
[357041289,1743615798268,154.719951,0.00025775,30]
[357041290,1743615798600,154.719951,0.00025,30]
[357041291,1743615852489,154.541343,0.000235,30]
[357041292,1743615917571,154.71995,0.00027325,30]
[357041293,1743615917893,154.71995,0.0002655,30]
[357041294,1743615918633,154.71995,0.00025775,30]
[357041295,1743615918938,154.71995,0.00025,30]
[357041313,1743616158764,477.809623,0.00027325,30]
[357041314,1743616159052,477.809623,0.0002655,30]
[357041315,1743616159356,477.809623,0.00025775,30]
[357041316,1743616159810,358.02863214,0.00025,30]
[357041317,1743616159833,119.78099086,0.00025,30]
[357041344,1743616232287,-183.8430431,0.00015329,2]
[357041345,1743616232297,-240.267347,0.00016002,2]
[357041346,1743616232308,-2311.49008423,0.0001602,2]
[357041347,1743616232321,-3419.7409406,0.0001602,2]
[357041348,1743616232332,-800.70358502,0.0001612,2]
[357041349,1743616232342,-300.0,0.0001622,2]
[357041350,1743616232352,-9403.3674592,0.00016221,2]
[357041351,1743616232374,-15496.6325408,0.00016221,2]
[357041352,1743616232384,-2380.5728166,0.00016337,2]
[357041353,1743616232394,-500.0,0.00016437,2]
[357041354,1743616232404,-500.0,0.00016437,2]
[357041355,1743616232415,-356.92367542,0.00016437,2]
[357041356,1743616232436,-271.33233228,0.00016437,2]
[357041357,1743616232450,-500.0,0.00016437,2]
[357041358,1743616232462,-639.05582665,0.00016437,2]
[357041359,1743616232475,-500.0,0.00016437,2]
[357041360,1743616232488,-500.0,0.00016437,2]
[357041361,1743616232500,-500.0,0.00016437,2]
[357041362,1743616232511,-493.6682333,0.00016438,2]
[357041363,1743616232523,-500.0,0.00016438,2]
[357041364,1743616232535,-500.0,0.00016438,2]
[357041365,1743616232547,-500.0,0.00016438,2]
[357041366,1743616232559,-500.0,0.00016438,2]
[357041367,1743616232572,-610.95,0.00016438,2]
[357041368,1743616232585,-364.33781356,0.00016438,2]
[357041369,1743616232597,-500.0,0.00016438,2]
[357041370,1743616232608,-500.0,0.00016438,2]
[357041371,1743616232619,-522.19152611,0.00016438,2]
[357041372,1743616232630,-500.0,0.00016438,2]
[357041373,1743616232643,-500.0,0.00016438,2]
[357041374,1743616232655,-228.66191284,0.00016438,2]
[357041375,1743616232666,-500.0,0.00016438,2]
[357041376,1743616232677,-500.0,0.00016438,2]
[357041377,1743616232689,-751.62,0.00016438,2]
[357041378,1743616232700,-500.0,0.00016438,2]
[357041379,1743616232711,-500.0,0.00016438,2]
[357041380,1743616232722,-500.0,0.00016438,2]
[357041381,1743616232734,-500.0,0.00016438,2]
[357041382,1743616232745,-500.0,0.00016438,2]
[357041383,1743616232755,-500.0,0.00016438,2]
[357041384,1743616232942,-949.78,0.00016438,2]
[357041385,1743616232964,-500.0,0.00016438,2]
[357041386,1743616232974,-500.0,0.00016438,2]
[357041387,1743616232985,-500.0,0.00016438,2]
[357041388,1743616232995,-500.0,0.00016438,2]
[357041389,1743616233004,-500.0,0.00016438,2]
[357041390,1743616233014,-500.0,0.00016438,2]
[357041391,1743616233023,-500.0,0.00016438,2]
[357041392,1743616233033,-500.0,0.00016438,2]
[357041393,1743616233043,-500.0,0.00016438,2]
[357041394,1743616233054,-500.0,0.00016438,2]
[357041395,1743616233063,-500.0,0.00016438,2]
[357041396,1743616233073,-638.73,0.00016438,2]
[357041397,1743616233082,-1013.82,0.00016438,2]
[357041398,1743616233092,-500.0,0.00016438,2]
[357041399,1743616233102,-500.0,0.00016438,2]
[357041400,1743616233112,-500.0,0.00016438,2]
[357041401,1743616233123,-500.0,0.00016438,2]
[357041402,1743616233132,-500.0,0.00016438,2]
[357041403,1743616233142,-500.0,0.00016712,2]
[357041404,1743616233152,-500.0,0.00016712,2]
[357041405,1743616233161,-500.0,0.00016712,2]
[357041406,1743616233170,-500.0,0.00016712,2]
[357041407,1743616233180,-610.95,0.00016712,2]
[357041408,1743616233190,-500.0,0.00016712,2]
[357041409,1743616233199,-500.0,0.00016712,2]
[357041410,1743616233208,-500.0,0.00016712,2]
[357041411,1743616233218,-93.65946215,0.00016712,2]
[357041440,1743616237851,-500.0,0.00016438,2]
[357041442,1743616237861,-500.0,0.00016438,2]
[357041443,1743616237871,-500.0,0.00016438,2]
[357041445,1743616237880,-500.0,0.00016438,2]
[357041447,1743616237890,-500.0,0.00016712,2]
[357041448,1743616237899,-500.0,0.00016712,2]
[357041450,1743616237908,-751.62,0.00016712,2]
[357041452,1743616237917,-500.0,0.00016712,2]
[357041454,1743616237927,-500.0,0.00016712,2]
[357041455,1743616237935,-500.0,0.00016712,2]
[357041457,1743616237945,-500.0,0.00016712,2]
[357041459,1743616237954,-500.0,0.00016712,2]
[357041460,1743616237964,-500.0,0.00016712,2]
[357041462,1743616237973,-949.78,0.00016712,2]
[357041465,1743616237983,-500.0,0.00016712,2]
[357041466,1743616237993,-500.0,0.00016712,2]
[357041468,1743616238003,-500.0,0.00016712,2]
[357041470,1743616238013,-500.0,0.00016712,2]
[357041471,1743616238022,-500.0,0.00016712,2]
[357041472,1743616238031,-500.0,0.00016712,2]
[357041473,1743616238041,-500.0,0.00016712,2]
[357041474,1743616238050,-500.0,0.00016712,2]
[357041475,1743616238058,-500.0,0.00016712,2]
[357041476,1743616238067,-500.0,0.00016712,2]
[357041477,1743616238077,-500.0,0.00016712,2]
[357041478,1743616238085,-638.73,0.00016712,2]
[357041479,1743616238094,-1013.82,0.00016712,2]
[357041480,1743616238103,-500.0,0.00016712,2]
[357041481,1743616238112,-500.0,0.00016712,2]
[357041482,1743616238121,-500.0,0.00016712,2]
[357041483,1743616238130,-500.0,0.00016712,2]
[357041484,1743616238140,-500.0,0.00016712,2]
[357041485,1743616238149,-500.0,0.00016712,2]
[357041486,1743616238158,-500.0,0.00016712,2]
[357041487,1743616238167,-250.0,0.00016848,2]
[357041489,1743616238176,-500.0,0.00016895,2]
[357041490,1743616238186,-500.0,0.00016895,2]
[357041491,1743616238195,-500.0,0.00016895,2]
[357041493,1743616238205,-500.0,0.00016895,2]
[357041495,1743616238214,-500.0,0.00016895,2]
[357041497,1743616238224,-500.0,0.00016986,2]
[357041499,1743616238234,-610.95,0.00016986,2]
[357041501,1743616238244,-500.0,0.00016986,2]
[357041503,1743616238254,-500.0,0.00016986,2]
[357041504,1743616238263,-500.0,0.00016986,2]
[357041506,1743616238273,-500.0,0.00016986,2]
[357041507,1743616238288,-500.0,0.00016986,2]
[357041508,1743616238298,-751.62,0.00016986,2]
[357041509,1743616238307,-500.0,0.00016986,2]
[357041510,1743616238316,-500.0,0.00016986,2]
[357041511,1743616238327,-500.0,0.00016986,2]
[357041513,1743616238338,-500.0,0.00016986,2]
[357041514,1743616238349,-500.0,0.00016986,2]
[357041515,1743616238358,-500.0,0.00016986,2]
[357041516,1743616238367,-949.78,0.00016986,2]
[357041517,1743616238377,-500.0,0.00016986,2]
[357041518,1743616238386,-500.0,0.00016986,2]
[357041519,1743616238395,-500.0,0.00016986,2]
[357041520,1743616238405,-500.0,0.00016986,2]
[357041521,1743616238414,-500.0,0.00016986,2]
[357041522,1743616238423,-500.0,0.00016986,2]
[357041523,1743616238432,-500.0,0.00016986,2]
[357041524,1743616238442,-500.0,0.00016986,2]
[357041525,1743616238451,-500.0,0.00016986,2]
[357041526,1743616238460,-500.0,0.00016986,2]
[357041527,1743616238469,-500.0,0.00016986,2]
[357041528,1743616238478,-638.73,0.00016986,2]
[357041529,1743616238488,-1013.82,0.00016986,2]
[357041530,1743616238497,-500.0,0.00016986,2]
[357041531,1743616238508,-500.0,0.00016986,2]
[357041532,1743616238518,-500.0,0.00016986,2]
[357041533,1743616238528,-500.0,0.00016986,2]
[357041534,1743616238537,-500.0,0.00016986,2]
[357041535,1743616238546,-500.0,0.00016986,2]
[357041536,1743616238556,-500.0,0.00016986,2]
[357041537,1743616238567,-240.0,0.00017,5]
[357041538,1743616238576,-180.8,0.00017169,2]
[357041539,1743616238586,-500.0,0.00017169,2]
[357041540,1743616238597,-500.0,0.00017259,2]
[357041541,1743616238606,-500.0,0.00017259,2]
[357041542,1743616238617,-153.63811336,0.00017259,2]
[357041543,1743616238627,-500.0,0.0001726,2]
[357041544,1743616238637,-610.95,0.0001726,2]
[357041545,1743616238649,-500.0,0.0001726,2]
[357041546,1743616238659,-500.0,0.0001726,2]
[357041547,1743616238669,-500.0,0.0001726,2]
[357041548,1743616238678,-500.0,0.0001726,2]
[357041549,1743616238688,-500.0,0.0001726,2]
[357041550,1743616238698,-751.62,0.0001726,2]
[357041551,1743616238707,-500.0,0.0001726,2]
[357041552,1743616238716,-500.0,0.0001726,2]
[357041553,1743616238725,-500.0,0.0001726,2]
[357041554,1743616238735,-500.0,0.0001726,2]
[357041555,1743616238745,-500.0,0.0001726,2]
[357041556,1743616238754,-500.0,0.0001726,2]
[357041557,1743616238763,-949.78,0.0001726,2]
[357041558,1743616238774,-500.0,0.0001726,2]
[357041559,1743616238783,-500.0,0.0001726,2]
[357041560,1743616238792,-500.0,0.0001726,2]
[357041561,1743616238802,-500.0,0.0001726,2]
[357041562,1743616238811,-500.0,0.0001726,2]
[357041563,1743616238820,-500.0,0.0001726,2]
[357041564,1743616238830,-500.0,0.0001726,2]
[357041565,1743616238839,-500.0,0.0001726,2]
[357041566,1743616238849,-500.0,0.0001726,2]
[357041567,1743616238858,-500.0,0.0001726,2]
[357041568,1743616238867,-500.0,0.0001726,2]
[357041569,1743616238877,-638.73,0.0001726,2]
[357041570,1743616238886,-1013.82,0.0001726,2]
[357041571,1743616238895,-649.39173641,0.0001726,2]
[357041572,1743616238905,-500.0,0.0001726,2]
[357041573,1743616238914,-500.0,0.0001726,2]
[357041574,1743616238924,-500.0,0.0001726,2]
[357041575,1743616238933,-500.0,0.0001726,2]
[357041576,1743616238943,-500.0,0.0001726,2]
[357041577,1743616238952,-151.0,0.00017296,2]
[357041578,1743616238961,-151.0,0.00017296,2]
[357041579,1743616238970,-151.0,0.00017296,2]
[357041580,1743616238979,-151.0,0.00017296,2]
[357041581,1743616238989,-151.0,0.00017296,2]
[357041582,1743616238999,-500.0,0.00017534,2]
[357041583,1743616239009,-610.95,0.00017534,2]
[357041584,1743616239018,-500.0,0.00017534,2]
[357041585,1743616239028,-500.0,0.00017534,2]
[357041586,1743616239037,-500.0,0.00017534,2]
[357041587,1743616239048,-500.0,0.00017534,2]
[357041588,1743616239057,-500.0,0.00017534,2]
[357041589,1743616239067,-751.62,0.00017534,2]
[357041590,1743616239076,-500.0,0.00017534,2]
[357041591,1743616239086,-500.0,0.00017534,2]
[357041592,1743616239095,-500.0,0.00017534,2]
[357041593,1743616239105,-500.0,0.00017534,2]
[357041594,1743616239114,-500.0,0.00017534,2]
[357041595,1743616239124,-500.0,0.00017534,2]
[357041596,1743616239134,-949.78,0.00017534,2]
[357041597,1743616239143,-500.0,0.00017534,2]